bitfinex/quotes_SOLUSD_20241229
["timestamp","ask_amount","ask_price","bid_price","bid_amount"]
[1735503852410,13.98161168,191.64,191.59,10.51634133]
[1735503852411,6.96189438,191.64,191.59,10.51634133]
[1735503852612,10.51634133,191.66,191.59,10.51634133]
[1735503853210,10.51634133,191.66,191.58,23.776884]
[1735503853518,10.51634133,191.66,191.6,30.51634133]
[1735503853834,10.51634133,191.66,191.61,23.776884]
[1735503854022,17.47823571,191.67,191.61,10.51634133]
[1735503855335,6.96189438,191.67,191.64,20.0]
[1735503855713,6.96189438,191.67,191.64,23.776884]
[1735503856007,6.96189438,191.67,191.61,43.776884]
[1735503856230,10.51634133,191.69,191.63,23.776884]
[1735503856436,10.51634133,191.68,191.63,23.776884]
[1735503856935,1.4781791,191.7,191.66,20.0]
[1735503857134,10.51634133,191.68,191.66,20.0]
[1735503858035,10.51634133,191.67,191.57,1.6141]
[1735503858243,10.51634133,191.64,191.57,12.13044133]
[1735503858615,10.51634133,191.64,191.6,20.0]
[1735503858836,10.51634133,191.61,191.53,1.6666]
[1735503859011,10.51634133,191.6,191.53,12.18294133]
[1735503859211,10.51634133,191.6,191.57,43.776884]
[1735503859438,6.96189438,191.61,191.57,43.776884]
[1735503860125,17.47823571,191.61,191.57,43.776884]
[1735503860325,6.96189438,191.61,191.57,43.776884]
[1735503860537,17.47823571,191.61,191.57,43.776884]
[1735503860741,10.51634133,191.6,191.57,43.776884]
[1735503861039,10.51634133,191.59,191.55,20.0]
[1735503861337,10.51634133,191.58,191.56,23.776884]
[1735503861541,10.51634133,191.59,191.55,20.0]
[1735503861740,10.51634133,191.59,191.53,1.6666]
[1735503862036,10.51634133,191.59,191.55,20.0]
[1735503862232,10.51634133,191.59,191.57,20.0]
[1735503862539,6.96189438,191.6,191.57,20.0]
[1735503862741,10.51634133,191.59,191.57,20.0]
[1735503863142,6.96189438,191.6,191.57,20.0]
[1735503863529,10.51634133,191.59,191.57,20.0]
[1735503864146,10.51634133,191.6,191.57,20.0]
[1735503864331,10.51634133,191.61,191.57,20.0]
[1735503864822,8.46789438,191.65,191.57,20.0]
[1735503865028,10.51634133,191.6,191.57,20.0]
[1735503865220,10.51634133,191.59,191.57,20.0]
[1735503867730,6.96189438,191.64,191.57,20.0]
[1735503867930,10.51634133,191.61,191.57,20.0]
[1735503868332,10.51634133,191.6,191.57,20.0]
[1735503868536,10.51634133,191.59,191.57,20.0]
[1735503868839,10.51634133,191.59,191.56,43.776884]
[1735503869230,10.51634133,191.6,191.56,43.776884]
[1735503869427,6.96189438,191.64,191.56,43.776884]
[1735503869631,10.51634133,191.62,191.56,43.776884]
[1735503870028,10.51634133,191.6,191.56,43.776884]
[1735503870227,10.51634133,191.59,191.56,43.776884]
[1735503873149,10.51634133,191.6,191.56,43.776884]
[1735503874526,10.51634133,191.61,191.56,43.776884]
[1735503875033,10.51634133,191.62,191.56,43.776884]
[1735503876240,6.96189438,191.64,191.62,23.776884]
[1735503876427,10.51634133,191.66,191.62,23.776884]
[1735503876630,10.51634133,191.66,191.65,20.0]
[1735503877331,17.47823571,191.66,191.63,20.0]
[1735503877654,10.51634133,191.64,191.63,20.0]
[1735503877945,6.96189438,191.65,191.63,20.0]
[1735503878125,10.51634133,191.64,191.63,20.0]
[1735503878525,6.96189438,191.64,191.63,20.0]
[1735503878732,17.47823571,191.64,191.63,20.0]
[1735503879639,1.5042,191.7,191.63,20.0]
[1735503879839,10.51634133,191.66,191.63,20.0]
[1735503880035,8.46609438,191.7,191.64,23.776884]
[1735503880036,6.96189438,191.7,191.64,23.776884]
[1735503880235,17.47823571,191.7,191.66,23.776884]
[1735503880949,6.96189438,191.7,191.69,20.0]
[1735503881732,6.96189438,191.7,191.69,43.776884]
[1735503883454,7.0197173,191.75,191.7,23.776884]
[1735503883648,7.0197173,191.75,191.73,20.0]
[1735503883649,10.51634133,191.74,191.73,20.0]
[1735503883851,19.17938228,191.75,191.73,20.0]
[1735503884047,12.15966498,191.75,191.73,20.0]
[1735503885262,10.51634133,191.74,191.73,20.0]
[1735503885568,16.10014412,191.74,191.73,20.0]
[1735503887578,5.58380279,191.74,191.73,20.0]
[1735503888153,16.10014412,191.74,191.73,20.0]
[1735503888473,16.10014412,191.74,191.63,0.78232052]
[1735503888677,10.51634133,191.71,191.64,10.51634133]
[1735503888856,10.51634133,191.71,191.68,43.776884]
[1735503889265,10.51634133,191.72,191.68,43.776884]
[1735503889467,10.51634133,191.72,191.68,20.0]
[1735503890285,10.51634133,191.71,191.64,10.51634133]
[1735503890442,10.51634133,191.7,191.63,10.51634133]
[1735503891477,5.58380279,191.72,191.67,20.0]
[1735503891652,10.51634133,191.7,191.68,23.776884]
[1735503892050,10.51634133,191.7,191.67,20.0]
[1735503892251,10.51634133,191.68,191.64,20.0]
[1735503892482,10.51634133,191.65,191.57,1.5993]
[1735503892673,10.51634133,191.63,191.57,1.5993]
[1735503892877,10.51634133,191.62,191.59,20.0]
[1735503893645,5.58380279,191.65,191.57,1.5993]
[1735503893964,5.58380279,191.65,191.64,20.0]
[1735503894142,10.51634133,191.66,191.65,20.0]
[1735503894342,10.51634133,191.68,191.65,20.0]
[1735503895774,7.0197173,191.69,191.68,20.0]
[1735503895959,10.51634133,191.7,191.66,43.776884]
[1735503896270,16.39167784,191.7,191.66,43.776884]
[1735503897667,16.39167784,191.69,191.66,43.776884]
[1735503897868,16.39167784,191.7,191.66,43.776884]
[1735503901068,21.97548063,191.71,191.66,43.776884]
[1735503901276,16.39167784,191.72,191.66,43.776884]
[1735503903573,16.39167784,191.72,191.66,60.16856184]
[1735503907873,16.39167784,191.72,191.66,43.776884]
[1735503908081,16.39167784,191.71,191.66,43.776884]
[1735503911183,16.39167784,191.69,191.66,43.776884]
[1735503911484,16.39167784,191.67,191.6,32.78335584]
[1735503911660,16.39167784,191.66,191.59,24.49097784]
[1735503911872,16.39167784,191.65,191.62,20.0]
[1735503913686,16.39167784,191.64,191.57,32.78335584]
[1735503913860,16.39167784,191.64,191.58,23.776884]
[1735503914063,16.39167784,191.64,191.62,23.776884]
[1735503914282,16.39167784,191.64,191.57,16.39167784]
[1735503914488,16.39167784,191.61,191.47,43.20102032]
[1735503914682,16.39167784,191.61,191.54,22.97827784]
[1735503914866,7.19650279,191.69,191.57,20.0]
[1735503914867,16.39167784,191.59,191.57,20.0]
[1735503915071,16.39167784,191.58,191.57,20.0]
[1735503915465,9.25708557,191.62,191.55,43.776884]
[1735503915466,16.39167784,191.6,191.55,43.776884]
[1735503915661,16.39167784,191.6,191.53,16.39167784]
[1735503915861,16.39167784,191.59,191.52,16.39167784]
[1735503916296,16.39167784,191.59,191.52,54.2791166]
[1735503916297,10.5022326,191.59,191.52,54.2791166]
[1735503916474,10.5022326,191.59,191.52,34.2791166]
[1735503916673,10.5022326,191.58,191.51,1.5567]
[1735503916862,10.5022326,191.58,191.54,20.0]
[1735503918988,10.5022326,191.56,191.52,43.776884]
[1735503919515,10.5022326,191.57,191.52,43.776884]
[1735503920523,10.5022326,191.53,191.46,12.0589326]
[1735503920742,10.5022326,191.53,191.49,20.0]
[1735503921088,10.5022326,191.53,191.52,20.0]
[1735503921291,10.5022326,191.54,191.53,20.0]
[1735503922115,10.5022326,191.55,191.53,20.0]
[1735503923729,17.46412698,191.57,191.53,20.0]
[1735503925312,10.5022326,191.56,191.53,20.0]
[1735503926327,10.5022326,191.55,191.53,20.0]
[1735503926717,10.5022326,191.56,191.53,20.0]
[1735503927302,17.46412698,191.57,191.53,20.0]
[1735503928821,10.5022326,191.56,191.53,20.0]
[1735503930698,10.5022326,191.55,191.53,20.0]
[1735503935423,10.5022326,191.56,191.53,20.0]
[1735503936626,10.5022326,191.55,191.48,30.5022326]
[1735503937026,10.5022326,191.55,191.52,20.0]
[1735503943237,10.5022326,191.54,191.52,20.0]
[1735503944315,10.5022326,191.53,191.48,20.0]
[1735503944532,10.5022326,191.52,191.48,20.0]
[1735503945019,10.5022326,191.52,191.46,1.5567]
[1735503945227,10.5022326,191.51,191.46,1.5567]
[1735503945417,10.5022326,191.51,191.47,20.0]
[1735503946021,10.5022326,191.51,191.48,20.0]
[1735503949439,10.5022326,191.5,191.48,20.0]
[1735503950024,10.5022326,191.51,191.48,20.0]
[1735503951030,10.5022326,191.51,191.48,19.5]
[1735503951340,1.64332365,191.53,191.48,19.5]
[1735503951541,10.5022326,191.51,191.48,19.5]
[1735503952039,10.5022326,191.5,191.48,19.5]
[1735503954739,10.5022326,191.51,191.48,19.5]
[1735503956053,10.0022326,191.51,191.48,19.5]
[1735503957523,10.5022326,191.5,191.48,19.5]
[1735503959470,10.5022326,191.51,191.48,19.5]
[1735503961961,10.5022326,191.5,191.48,19.5]
[1735503965365,9.0412846,191.5,191.48,19.5]
[1735503966174,10.5022326,191.49,191.48,19.5]
[1735503966967,10.5022326,191.5,191.48,19.5]
[1735503967463,12.14555625,191.51,191.48,19.5]
[1735503967672,1.64332365,191.51,191.49,20.0]
[1735503967834,0.26523206,191.54,191.49,20.0]
[1735503968191,10.76746466,191.54,191.5,20.0]
[1735503969969,0.26523206,191.54,191.51,43.776884]
[1735503970486,0.26523206,191.54,191.51,43.276884]
[1735503971866,1.64332365,191.55,191.51,53.7791166]
[1735503973496,1.64332365,191.55,191.51,43.276884]
[1735503974796,10.5022326,191.52,191.46,1.6614]
[1735503975003,10.5022326,191.51,191.46,1.6614]
[1735503975183,10.5022326,191.5,191.46,1.6614]
[1735503975802,10.5022326,191.5,191.48,20.0]
[1735503975972,10.5022326,191.51,191.48,20.0]
[1735503978502,10.5022326,191.5,191.46,1.6614]
[1735503978798,10.5022326,191.5,191.46,20.0]
[1735503978974,10.5022326,191.5,191.49,20.0]
[1735503979179,10.5022326,191.51,191.5,20.0]
[1735503980068,12.41078831,191.52,191.5,20.0]
[1735503980993,1.90855571,191.52,191.5,20.0]
[1735503982871,12.41078831,191.52,191.5,20.0]
[1735503983390,10.5022326,191.51,191.5,20.0]
[1735503983576,10.5022326,191.51,191.43,10.5022326]
[1735503983775,10.5022326,191.51,191.45,23.776884]
[1735503983973,10.5022326,191.49,191.48,20.0]
[1735503984171,10.5022326,191.49,191.42,12.81700188]
[1735503984476,10.5022326,191.49,191.43,23.776884]
[1735503984795,10.5022326,191.49,191.46,20.0]
[1735503986293,10.5022326,191.49,191.45,20.0]
[1735503986493,10.5022326,191.49,191.46,20.0]
[1735503986993,2.68427072,191.5,191.46,20.0]
[1735503987292,5.31857073,191.51,191.47,20.0]
[1735503987489,15.82080333,191.51,191.47,20.0]
[1735503988678,10.5022326,191.5,191.47,20.0]
[1735503989599,15.82080333,191.51,191.47,20.0]
[1735503989902,5.31857073,191.51,191.48,43.776884]
[1735503993481,10.5022326,191.54,191.48,43.776884]
[1735503995200,13.18650332,191.55,191.48,54.2791166]
[1735503996103,10.5022326,191.54,191.48,43.776884]
[1735503997904,2.68427072,191.55,191.48,43.776884]
[1735503998215,10.5022326,191.54,191.48,43.776884]
[1735503999300,6.38757886,191.6,191.5,23.776884]
[1735503999608,6.38757886,191.6,191.54,20.0]
[1735503999609,10.5022326,191.58,191.54,20.0]
[1735504000187,10.5022326,191.58,191.56,20.0]
[1735504000788,10.5022326,191.59,191.56,20.0]
[1735504003617,6.38757886,191.6,191.57,20.0]
[1735504004802,10.5022326,191.61,191.57,20.0]
[1735504006208,10.5022326,191.59,191.56,20.0]
[1735504006405,10.5022326,191.58,191.56,20.0]
[1735504006798,10.5022326,191.59,191.56,20.0]
[1735504008522,6.38757886,191.6,191.57,23.776884]
[1735504008697,16.88981146,191.6,191.57,23.776884]
[1735504008898,6.38757886,191.6,191.58,20.0]
[1735504010214,6.38757886,191.6,191.54,10.5022326]
[1735504010522,6.38757886,191.6,191.58,20.0]
[1735504011301,16.88981146,191.6,191.58,20.0]
[1735504013522,6.38757886,191.6,191.58,20.0]
[1735504013897,6.38757886,191.6,191.51,30.5022326]
[1735504013898,10.5022326,191.59,191.51,30.5022326]
[1735504014100,10.5022326,191.58,191.51,30.5022326]
[1735504014299,10.5022326,191.56,191.49,1.5132]
[1735504014499,10.5022326,191.55,191.44,20.15355332]
[1735504014714,10.5022326,191.53,191.49,20.0]
[1735504014915,10.5022326,191.53,191.46,10.5022326]
[1735504015216,10.5022326,191.52,191.45,10.5022326]
[1735504015418,10.5022326,191.52,191.49,20.0]
[1735504015626,10.5022326,191.53,191.49,20.0]
[1735504016001,14.21271986,191.54,191.5,20.0]
[1735504016208,3.71048726,191.54,191.49,10.5022326]
[1735504016404,3.71048726,191.54,191.51,20.0]
[1735504020027,3.71048726,191.54,191.52,20.0]
[1735504020630,3.71048726,191.54,191.53,20.0]
[1735504020808,5.29463537,191.6,191.53,20.0]
[1735504020809,4.09095471,191.6,191.54,20.0]
[1735504021007,14.59318731,191.6,191.54,20.0]
[1735504022010,4.09095471,191.6,191.54,30.5022326]
[1735504022201,4.09095471,191.6,191.54,20.0]
[1735504022407,10.5022326,191.59,191.54,20.0]
[1735504023424,4.09095471,191.6,191.54,30.5022326]
[1735504024601,4.09095471,191.6,191.54,20.0]
[1735504024806,10.5022326,191.58,191.54,20.0]
[1735504025208,23.776884,191.63,191.51,12.0534326]
[1735504025415,4.09095471,191.61,191.52,10.5022326]
[1735504025710,10.5022326,191.59,191.53,30.5022326]
[1735504025910,4.09095471,191.61,191.53,30.5022326]
[1735504026220,10.5022326,191.59,191.53,30.5022326]
[1735504027331,10.5022326,191.59,191.54,23.776884]
[1735504028632,10.5022326,191.6,191.54,23.776884]
[1735504031446,4.09095471,191.61,191.57,20.0]
[1735504031734,10.5022326,191.6,191.57,20.0]
[1735504032443,14.59318731,191.61,191.58,20.0]
[1735504032614,4.09095471,191.61,191.59,20.0]
[1735504033215,4.09095471,191.61,191.58,20.0]
[1735504035837,4.09095471,191.61,191.59,20.0]
[1735504036134,4.09095471,191.61,191.57,30.5022326]
[1735504036931,14.59318731,191.61,191.57,20.0]
[1735504037235,14.59318731,191.61,191.58,20.0]
[1735504038041,10.5022326,191.6,191.51,1.5512]
[1735504038359,10.5022326,191.57,191.51,12.0534326]
[1735504038846,10.5022326,191.57,191.55,20.0]
[1735504039051,10.5022326,191.58,191.55,20.0]
[1735504039257,10.5022326,191.58,191.52,34.2791166]
[1735504039258,4.09095471,191.59,191.54,10.5022326]
[1735504039419,4.09095471,191.59,191.55,20.0]
[1735504039615,14.59318731,191.59,191.55,20.0]
[1735504040020,10.5022326,191.58,191.55,20.0]
[1735504040249,10.5022326,191.57,191.51,1.5512]
[1735504040433,10.5022326,191.57,191.53,20.0]
[1735504040859,10.5022326,191.57,191.5,10.5022326]
[1735504041090,14.59318731,191.57,191.5,10.5022326]
[1735504041358,14.59318731,191.57,191.53,20.0]
[1735504041979,10.5022326,191.56,191.49,30.5022326]
[1735504042737,14.59318731,191.57,191.53,20.0]
[1735504043044,4.09095471,191.57,191.55,20.0]
[1735504044271,10.5022326,191.58,191.55,20.0]
[1735504045272,10.5022326,191.58,191.54,20.0]
[1735504046563,10.5022326,191.59,191.55,20.0]
[1735504046779,4.09095471,191.61,191.55,20.0]
[1735504046979,4.09095471,191.61,191.59,20.0]
[1735504047884,10.5022326,191.64,191.6,20.0]
[1735504048168,10.5022326,191.65,191.61,20.0]
[1735504049177,6.38757886,191.66,191.62,20.0]
[1735504049765,6.38757886,191.66,191.63,20.0]
[1735504050368,6.38757886,191.66,191.64,20.0]
[1735504051666,6.3541,191.73,191.65,20.0]
[1735504051840,10.5022326,191.69,191.65,20.0]
[1735504052044,10.5022326,191.68,191.65,20.0]
[1735504052872,10.5022326,191.7,191.66,20.0]
[1735504053469,10.5022326,191.7,191.63,10.5022326]
[1735504053470,6.38757886,191.71,191.68,20.0]
[1735504053667,16.88981146,191.71,191.68,20.0]
[1735504055841,6.38757886,191.71,191.68,20.0]
[1735504056046,6.38757886,191.71,191.69,20.0]
[1735504056346,10.5022326,191.73,191.69,20.0]
[1735504056554,7.89597886,191.75,191.7,20.0]
[1735504056871,10.5022326,191.74,191.7,20.0]
[1735504057053,10.5022326,191.71,191.64,0.78238531]
[1735504057259,10.5022326,191.69,191.62,10.5022326]
[1735504057671,15.47594835,191.7,191.66,20.0]
[1735504057964,15.47594835,191.7,191.67,20.0]
[1735504058367,4.97371575,191.7,191.67,20.0]
[1735504059171,10.5022326,191.72,191.66,20.0]
[1735504059471,10.5022326,191.74,191.67,10.5022326]
[1735504060067,15.47594835,191.75,191.71,20.0]
[1735504060654,10.5022326,191.74,191.71,20.0]
[1735504060972,10.5022326,191.73,191.71,20.0]
[1735504061393,15.47594835,191.74,191.71,20.0]
[1735504061693,4.97371575,191.74,191.71,20.0]
[1735504062388,4.97371575,191.74,191.72,20.0]
[1735504062991,4.97371575,191.74,191.69,10.5022326]
[1735504062992,5.62782492,191.79,191.73,20.0]
[1735504063286,12.01540378,191.79,191.73,20.0]
[1735504063455,12.01540378,191.79,191.73,30.5022326]
[1735504063856,12.01540378,191.79,191.77,20.0]
[1735504064181,98.30411348,191.86,191.79,20.0]
[1735504064386,98.30411348,191.86,191.79,30.5022326]
[1735504064597,108.80634608,191.86,191.83,20.0]
[1735504065580,98.30411348,191.86,191.83,20.0]
[1735504066997,10.5022326,191.84,191.8,20.0]
[1735504067593,5.74913442,191.85,191.8,20.0]
[1735504067896,5.74913442,191.85,191.7,72.0089304]
[1735504067897,10.5022326,191.82,191.73,1.6016]
[1735504068198,10.5022326,191.81,191.77,20.0]
[1735504068500,10.5022326,191.81,191.74,34.2791166]
[1735504068699,10.5022326,191.8,191.74,23.776884]
[1735504068993,10.5022326,191.79,191.73,1.6016]
[1735504069897,10.5022326,191.79,191.75,20.0]
[1735504071897,10.5022326,191.8,191.76,20.0]
[1735504072101,6.55182556,191.84,191.76,20.0]
[1735504072102,10.5022326,191.83,191.77,20.0]
[1735504072282,17.05405816,191.84,191.77,30.5022326]
[1735504073191,10.5022326,191.83,191.77,20.0]
[1735504074207,10.5022326,191.82,191.77,20.0]
[1735504074706,92.67628856,191.86,191.73,1.6016]
[1735504074707,10.5022326,191.8,191.73,1.6016]
[1735504075088,10.5022326,191.8,191.75,20.0]
[1735504075681,10.5022326,191.83,191.78,20.0]
[1735504075889,10.5022326,191.82,191.78,20.0]
[1735504076404,10.5022326,191.83,191.76,10.5022326]
[1735504077107,10.5022326,191.83,191.75,20.0]
[1735504077108,10.5022326,191.82,191.75,30.5022326]
[1735504081691,10.5022326,191.83,191.75,30.5022326]
[1735504082314,10.5022326,191.82,191.75,30.5022326]
[1735504083313,10.5022326,191.84,191.79,20.0]
[1735504083617,10.5022326,191.84,191.8,20.0]
[1735504084103,10.5022326,191.85,191.81,20.0]
[1735504084304,103.17852116,191.86,191.81,20.0]
[1735504084838,103.17852116,191.86,191.82,20.0]
[1735504084839,92.67628856,191.86,191.82,20.0]
[1735504085326,17.05405816,191.88,191.82,20.0]
[1735504087223,10.5022326,191.85,191.8,1.6607]
[1735504087429,10.5022326,191.81,191.74,1.6607]
[1735504087604,10.5022326,191.81,191.67,30.0]
[1735504087605,10.5022326,191.77,191.67,1.6607]
[1735504087926,10.5022326,191.76,191.69,10.5022326]
[1735504088120,10.5022326,191.76,191.74,20.0]
[1735504088337,10.5022326,191.77,191.71,23.776884]
[1735504088505,10.5022326,191.77,191.7,10.5022326]
[1735504088700,10.5022326,191.77,191.74,20.0]
[1735504089102,10.5022326,191.75,191.74,20.0]
[1735504089618,10.5022326,191.76,191.71,20.0]
[1735504090220,16.38373645,191.76,191.69,20.0]
[1735504090422,16.38373645,191.76,191.71,20.0]
[1735504090625,16.38373645,191.75,191.71,20.0]
[1735504090813,16.38373645,191.74,191.68,23.776884]
[1735504091630,16.38373645,191.75,191.71,20.0]
[1735504092326,16.38373645,191.74,191.71,20.0]
[1735504095424,16.38373645,191.73,191.66,16.38373645]
[1735504096129,16.38373645,191.73,191.69,20.0]
[1735504097327,16.38373645,191.74,191.69,20.0]
[1735504097633,16.38373645,191.76,191.69,16.38373645]
[1735504098236,16.38373645,191.75,191.71,20.0]
[1735504098810,16.38373645,191.74,191.71,20.0]
[1735504099011,16.38373645,191.73,191.7,20.0]
[1735504099315,16.38373645,191.71,191.64,16.38373645]
[1735504099531,16.38373645,191.7,191.63,16.38373645]
[1735504099844,16.38373645,191.7,191.66,20.0]
[1735504100132,16.38373645,191.7,191.63,16.38373645]
[1735504100350,16.38373645,191.7,191.66,20.0]
[1735504100634,16.38373645,191.68,191.62,1.6607]
[1735504101211,16.38373645,191.66,191.57,1.5241]
[1735504101418,16.38373645,191.65,191.58,16.38373645]
[1735504102810,16.38373645,191.66,191.59,36.38373645]
[1735504103017,16.38373645,191.66,191.61,20.0]
[1735504103230,16.38373645,191.65,191.61,20.0]
[1735504103730,16.38373645,191.68,191.63,20.0]
[1735504104813,16.38373645,191.67,191.63,20.0]
[1735504105330,16.38373645,191.68,191.61,36.38373645]
[1735504108541,16.38373645,191.67,191.63,20.0]
[1735504109021,16.38373645,191.65,191.61,20.0]
[1735504109838,16.38373645,191.64,191.61,20.0]
[1735504110040,16.38373645,191.64,191.6,20.0]
[1735504111253,16.38373645,191.65,191.61,20.0]
[1735504111537,16.38373645,191.66,191.61,20.0]
[1735504111727,16.38373645,191.68,191.64,20.0]
[1735504112131,16.38373645,191.67,191.64,20.0]
[1735504112747,16.38373645,191.66,191.63,20.0]
[1735504113352,16.38373645,191.65,191.59,20.0]
[1735504113522,16.38373645,191.65,191.57,1.5241]
[1735504113523,16.38373645,191.65,191.61,20.0]
[1735504113842,16.38373645,191.66,191.61,20.0]
[1735504114944,16.38373645,191.66,191.62,20.0]
[1735504115149,16.38373645,191.67,191.63,20.0]
[1735504116156,16.38373645,191.68,191.63,20.0]
[1735504116857,16.38373645,191.68,191.64,20.0]
[1735504117462,16.38373645,191.68,191.63,20.0]
[1735504120258,10.49442017,191.67,191.63,20.0]
[1735504120431,10.49442017,191.66,191.63,20.0]
[1735504121036,10.49442017,191.66,191.59,10.49442017]
[1735504121443,6.26757785,191.68,191.58,23.776884]
[1735504121444,10.49442017,191.67,191.63,20.0]
[1735504122663,16.76199802,191.68,191.61,30.49442017]
[1735504123057,10.49442017,191.67,191.63,20.0]
[1735504128768,10.49442017,191.67,191.58,23.776884]
[1735504128769,6.26757785,191.68,191.62,23.776884]
[1735504128946,1.5965,191.75,191.67,20.0]
[1735504128947,10.49442017,191.71,191.67,20.0]
[1735504129354,10.49442017,191.69,191.67,20.0]
[1735504131052,6.26757785,191.73,191.59,30.49442017]
[1735504131053,10.49442017,191.68,191.59,30.49442017]
[1735504131277,10.49442017,191.66,191.59,30.49442017]
[1735504132468,10.49442017,191.67,191.63,20.0]
[1735504132656,10.49442017,191.67,191.64,20.0]
[1735504133897,6.26757785,191.73,191.65,20.0]
[1735504134066,10.49442017,191.68,191.65,20.0]
[1735504135603,10.49442017,191.69,191.65,20.0]
[1735504137370,10.49442017,191.68,191.65,20.0]
[1735504137679,10.49442017,191.67,191.65,20.0]
[1735504138386,10.49442017,191.68,191.65,20.0]
[1735504139885,10.49442017,191.69,191.65,20.0]
[1735504143391,10.49442017,191.68,191.62,20.0]
[1735504143591,10.49442017,191.67,191.63,20.0]
[1735504147090,10.49442017,191.65,191.57,12.01852]
[1735504147269,10.49442017,191.65,191.58,10.49442017]
[1735504147468,10.49442017,191.65,191.61,20.0]
[1735504149292,10.49442017,191.66,191.59,30.49442017]
[1735504152398,10.49442017,191.66,191.6,34.27130417]
[1735504152602,12.81940341,191.67,191.63,20.0]
[1735504152894,6.26757785,191.67,191.63,20.0]
[1735504155206,10.49442017,191.64,191.58,10.49442017]
[1735504155694,6.55182556,191.66,191.63,20.0]
[1735504156000,17.04624573,191.66,191.63,20.0]
[1735504156906,10.49442017,191.65,191.62,20.0]
[1735504157482,10.49442017,191.64,191.61,20.0]
[1735504158185,10.49442017,191.62,191.59,20.0]
[1735504158383,10.49442017,191.6,191.59,20.0]
[1735504159011,10.49442017,191.6,191.58,20.0]
[1735504159599,10.49442017,191.6,191.56,20.0]
[1735504160327,10.49442017,191.6,191.54,23.776884]
[1735504160500,10.49442017,191.6,191.54,34.27130417]
[1735504160702,10.49442017,191.6,191.57,20.0]
[1735504160899,10.49442017,191.59,191.57,20.0]
[1735504161097,10.49442017,191.58,191.57,20.0]
[1735504161829,10.49442017,191.58,191.54,20.0]
[1735504163000,6.55182556,191.64,191.48,1.5615]
[1735504163001,10.49442017,191.57,191.48,1.5615]
[1735504163336,10.49442017,191.56,191.49,34.27130417]
[1735504163514,10.49442017,191.57,191.53,20.0]
[1735504165610,10.49442017,191.59,191.54,20.0]
[1735504166325,10.49442017,191.59,191.55,20.0]
[1735504166626,6.26757785,191.61,191.57,20.0]
[1735504166802,16.76199802,191.61,191.57,20.0]
[1735504167735,6.26757785,191.61,191.59,20.0]
[1735504167902,6.55182556,191.62,191.5,42.76061842]
[1735504167903,10.49442017,191.65,191.6,20.0]
[1735504168103,6.55182556,191.68,191.6,30.49442017]
[1735504168317,10.49442017,191.67,191.6,30.49442017]
[1735504168714,17.04624573,191.68,191.64,20.0]
[1735504170225,10.49442017,191.67,191.64,20.0]
[1735504170416,10.49442017,191.66,191.62,20.0]
[1735504171902,10.49442017,191.66,191.61,20.0]
[1735504173224,10.49442017,191.65,191.61,20.0]
[1735504174433,12.47273675,191.68,191.63,20.0]
[1735504174606,10.49442017,191.67,191.63,20.0]
[1735504175327,10.49442017,191.66,191.62,20.0]
[1735504175530,10.49442017,191.65,191.62,20.0]
[1735504176029,10.49442017,191.65,191.61,20.0]
[1735504179103,10.49442017,191.64,191.57,10.49442017]
[1735504179429,10.49442017,191.62,191.55,12.05592017]
[1735504180134,10.49442017,191.63,191.56,10.49442017]
[1735504180627,10.49442017,191.63,191.59,20.0]
[1735504180836,10.49442017,191.64,191.6,20.0]
[1735504183439,10.49442017,191.64,191.57,10.49442017]
[1735504183440,10.49442017,191.65,191.61,20.0]
[1735504183618,17.04624573,191.66,191.62,20.0]
[1735504185444,6.55182556,191.66,191.63,20.0]
[1735504186555,6.55182556,191.66,191.6,10.49442017]
[1735504186556,17.04624573,191.66,191.64,20.0]
[1735504187237,17.04624573,191.66,191.63,20.0]
[1735504187656,10.49442017,191.65,191.63,20.0]
[1735504187935,10.49442017,191.65,191.62,20.0]
[1735504188437,6.55182556,191.66,191.62,20.0]
[1735504188624,10.49442017,191.71,191.67,20.0]
[1735504189329,5.92091119,191.74,191.64,20.0]